bitfinex-derivatives/quotes_BTCF0:USTF0_20250506
["timestamp","ask_amount","ask_price","bid_price","bid_amount"]
[1746540386271,0.1667,94004.0,94003.0,0.2128123]
[1746540386478,0.3713942,94011.0,94010.0,0.2127965]
[1746540386677,0.1586,94011.0,94010.0,0.5735965]
[1746540386881,0.0531876,94031.0,94029.0,0.2127535]
[1746540387078,0.380954,94030.0,94029.0,0.2127535]
[1746540388387,0.533354,94030.0,94029.0,0.2127535]
[1746540389208,0.2659497,94028.0,94027.0,0.2127566]
[1746540389385,0.2127625,94025.0,94024.0,1.7127631]
[1746540389580,0.2127625,94025.0,94024.0,1.5]
[1746540389980,0.2128033,94007.0,94006.0,0.1599]
[1746540390277,0.2128282,93996.0,93987.0,0.3608]
[1746540390587,0.2128282,93996.0,93995.0,0.21389428]
[1746540391883,0.2128282,93996.0,93995.0,0.00106388]
[1746540392693,0.2128282,93996.0,93995.0,0.21389428]
[1746540393577,0.2128282,93996.0,93995.0,0.00106388]
[1746540394382,0.0532073,93996.0,93980.0,0.00043]
[1746540394578,0.2128621,93981.0,93980.0,0.00043]
[1746540394788,0.2660712,93986.0,93985.0,0.2128508]
[1746540394975,0.1601,93986.0,93985.0,0.2128508]
[1746540395172,0.15994998,93986.0,93985.0,0.3647508]
[1746540395377,0.37280078,93986.0,93985.0,0.3647508]
[1746540396079,0.15994998,93986.0,93985.0,0.3647508]
[1746540396479,0.37280078,93986.0,93985.0,0.3647508]
[1746540396782,0.15994998,93986.0,93985.0,0.3647508]
[1746540396982,0.15994998,93986.0,93985.0,1.8647508]
[1746540397487,0.2660491,93994.0,93993.0,0.2128282]
[1746540397873,0.2128372,93992.0,93991.0,0.3703381]
[1746540398088,0.3608,94000.0,93985.0,1.5]
[1746540398278,0.2128508,93986.0,93985.0,1.5]
[1746540399188,0.2128508,93986.0,93985.0,1.7128531]
[1746540399689,0.0532057,94001.0,93997.0,0.0532059]
[1746540399990,0.3192527,93996.0,93995.0,0.2110252]
[1746540400588,0.2660448,93996.0,93995.0,0.2110252]
[1746540400787,0.2128248,93998.0,93997.0,0.2128214]
[1746540401090,0.2128248,93998.0,93997.0,0.3745214]
[1746540402092,0.2128204,94000.0,93999.0,0.2128214]
[1746540403484,0.0532109,93991.0,93985.0,1.5]
[1746540403683,0.2128508,93986.0,93985.0,1.7128531]
[1746540404092,0.1605,93990.0,93987.0,0.0532116]
[1746540404393,0.3733417,93990.0,93989.0,0.212844]
[1746540404592,0.1605,93990.0,93989.0,0.212844]
[1746540404892,0.2128356,93996.0,93995.0,0.2660269]
[1746540407493,0.1605,93997.0,93996.0,0.2128282]
[1746540407698,0.3733259,93997.0,93996.0,0.3710282]
[1746540407898,0.3733259,93997.0,93996.0,0.1582]
[1746540408590,0.2128327,93994.0,93993.0,0.3608]
[1746540409595,0.2128372,93992.0,93991.0,0.2128394]
[1746540409796,0.26606,93989.0,93988.0,0.2128455]
[1746540411192,0.2128485,93987.0,93986.0,0.1673]
[1746540411388,0.0532138,93984.0,93973.0,0.0532197]
[1746540411583,0.2660781,93981.0,93980.0,0.1673]
[1746540411996,0.2660781,93981.0,93980.0,0.3801644]
[1746540413094,0.2660781,93981.0,93980.0,0.1673]
[1746540413296,0.2660781,93981.0,93980.0,0.3801644]
[1746540413795,0.2128621,93981.0,93980.0,0.3801644]
[1746540415493,0.5335587,93983.0,93982.0,0.2128599]
[1746540416791,0.3207,93983.0,93982.0,0.2128599]
[1746540416991,0.5335576,93983.0,93982.0,0.2128599]
[1746540417192,0.2128621,93981.0,93980.0,0.3801642]
[1746540418200,0.2128621,93981.0,93980.0,0.3801644]
[1746540418497,0.2128621,93981.0,93980.0,0.1673]
[1746540418797,0.2128621,93981.0,93980.0,0.3801644]
[1746540419503,0.2128621,93981.0,93980.0,0.1673]
[1746540420301,0.2128621,93981.0,93977.0,1.86239613]
[1746540420302,0.2128961,93966.0,93952.0,0.3608]
[1746540420501,0.2128961,93966.0,93962.0,0.4140262]
[1746540420797,0.2128961,93966.0,93962.0,0.3608]
[1746540421395,0.2128961,93966.0,93965.0,0.21396262]
[1746540421596,0.2128961,93966.0,93965.0,0.00106422]
[1746540422201,0.3664961,93966.0,93965.0,0.00106422]
[1746540424496,0.9337201,93966.0,93965.0,2e-08]
[1746540425096,0.8337201,93966.0,93965.0,2e-08]
[1746540426999,0.9337201,93966.0,93965.0,2e-08]
[1746540427205,0.8837201,93966.0,93965.0,2e-08]
[1746540428302,0.9837201,93966.0,93965.0,2e-08]
[1746540428806,0.8837201,93966.0,93965.0,2e-08]
[1746540429196,0.7272961,93966.0,93965.0,2e-08]
[1746540430303,0.9337201,93966.0,93965.0,2e-08]
[1746540432399,0.7272961,93966.0,93965.0,2e-08]
[1746540433003,0.3664961,93966.0,93965.0,2e-08]
[1746540433201,0.3664961,93966.0,93965.0,0.21289842]
[1746540433405,0.1536,93966.0,93965.0,0.21289842]
[1746540433597,0.212887,93970.0,93969.0,0.2128885]
[1746540433801,0.212887,93970.0,93966.0,0.0532239]
[1746540433802,0.2128938,93968.0,93967.0,0.2128927]
[1746540434102,0.2128938,93968.0,93967.0,0.5353927]
[1746540434299,0.2128938,93968.0,93967.0,0.3225]
[1746540434694,0.5439938,93968.0,93967.0,0.3225]
[1746540435100,0.5439938,93968.0,93967.0,0.5353938]
[1746540435915,0.5439938,93968.0,93967.0,0.3225]
[1746540436795,0.5439938,93968.0,93967.0,0.5353938]
[1746540437011,0.5439938,93968.0,93967.0,0.3225]
[1746540437398,0.5439938,93968.0,93967.0,0.1569]
[1746540437709,0.2128961,93966.0,93965.0,2e-08]
[1746540438299,0.3128961,93966.0,93965.0,2e-08]
[1746540439303,0.3193201,93966.0,93965.0,2e-08]
[1746540439508,0.4193201,93966.0,93965.0,2e-08]
[1746540439901,0.2129346,93949.0,93948.0,0.1617]
[1746540440098,0.2129482,93943.0,93942.0,0.00159672]
[1746540447516,0.3608,93949.0,93945.0,0.0532354]
[1746540447712,0.2661676,93951.0,93950.0,0.2661608]
[1746540447908,0.2129346,93949.0,93948.0,0.7013351]
[1746540449013,0.2129346,93949.0,93948.0,0.4884]
[1746540449515,0.2129346,93949.0,93948.0,0.1616]
[1746540450008,0.5361346,93949.0,93948.0,0.1616]
[1746540450915,0.2129482,93943.0,93942.0,0.00159672]
[1746540451612,0.5384482,93943.0,93942.0,0.00159672]
[1746540454619,0.6384482,93943.0,93942.0,0.00159672]
[1746540454813,0.74489621,93943.0,93942.0,0.00159672]
[1746540457015,0.74489621,93943.0,93937.0,0.1598]
[1746540457016,0.6384482,93943.0,93937.0,0.1598]
[1746540457221,0.2129641,93936.0,93935.0,0.00106456]
[1746540457420,0.3129641,93936.0,93935.0,0.00106456]
[1746540457611,0.4194201,93936.0,93935.0,6e-08]
[1746540457817,1.1489201,93936.0,93935.0,6e-08]
[1746540458014,1.1489201,93936.0,93909.0,0.1625]
[1746540458015,0.2130231,93910.0,93909.0,0.1625]
[1746540459319,0.0532531,93915.0,93909.0,0.2157559]
[1746540459517,0.0532416,93935.0,93914.0,0.3608]
[1746540459722,0.2129868,93926.0,93925.0,0.5737871]
[1746540460019,0.3286,93935.0,93931.0,0.2129742]
[1746540460020,0.212976,93932.0,93931.0,0.2129742]
[1746540460224,0.2129777,93930.0,93929.0,0.2129781]
[1746540460422,0.2129868,93927.0,93926.0,0.2129853]
[1746540460615,0.2129868,93927.0,93926.0,0.3798853]
[1746540460917,0.2662223,93931.0,93930.0,0.2129737]
[1746540461121,0.6795,93936.0,93935.0,0.2129664]
[1746540461323,0.0532365,93944.0,93936.0,0.053241]
[1746540461621,0.2129408,93947.0,93946.0,0.2129392]
[1746540461821,0.2661863,93945.0,93944.0,0.2129454]
[1746540462319,0.165,93951.0,93943.0,0.4816]
[1746540462519,0.2129459,93945.0,93944.0,0.2661796]
[1746540462726,0.2129459,93945.0,93944.0,0.5385437]
[1746540464239,0.212941,93947.0,93946.0,0.2129392]
[1746540464638,0.212941,93947.0,93946.0,0.5457392]
[1746540464932,0.212941,93947.0,93946.0,0.3328]
[1746540465140,0.212941,93947.0,93946.0,0.5457414]
[1746540467238,0.212941,93947.0,93946.0,0.3328]
[1746540467740,0.212941,93947.0,93946.0,0.5457414]
[1746540467937,0.5737278,93952.0,93951.0,0.2129301]
[1746540468140,0.5737278,93952.0,93951.0,0.3909301]
[1746540468536,0.2129278,93952.0,93951.0,0.3909301]
[1746540469141,0.2129278,93952.0,93951.0,0.2129301]
[1746540469438,0.2129346,93950.0,93949.0,0.2129328]
[1746540469640,0.0532336,93950.0,93946.0,0.1684]
[1746540469840,0.2661687,93949.0,93948.0,0.1557]
[1746540470041,0.2129346,93949.0,93948.0,0.3686369]
[1746540470433,0.2129346,93949.0,93948.0,0.1557]
[1746540471238,0.212946,93944.0,93935.0,0.0532414]
[1746540471437,0.212946,93944.0,93936.0,0.1557]
[1746540471640,0.2129482,93943.0,93936.0,0.1557]
[1746540471844,0.3803482,93943.0,93936.0,0.3686632]
[1746540472347,0.3803482,93943.0,93936.0,0.1557]
[1746540472641,0.3803482,93943.0,93940.0,0.212955]
[1746540473048,0.2129573,93939.0,93938.0,0.2129578]
[1746540473241,0.2129573,93939.0,93938.0,0.3752578]
[1746540474342,0.2129529,93941.0,93940.0,0.2661887]
[1746540474535,0.2129529,93941.0,93940.0,0.2129505]
[1746540474739,0.2129529,93941.0,93940.0,0.3752488]
[1746540474740,0.2129528,93941.0,93940.0,0.3752488]
[1746540476341,0.2129405,93947.0,93946.0,0.2129392]
[1746540477348,0.2129686,93934.0,93933.0,0.7819079]
[1746540477844,0.2129686,93934.0,93933.0,0.8351265]
[1746540479940,0.2129686,93934.0,93933.0,0.7286665]
[1746540480449,0.2129657,93936.0,93935.0,0.2129664]
[1746540481350,0.2129686,93934.0,93933.0,0.7286669]
[1746540482043,0.0532263,93962.0,93933.0,0.62216]
[1746540482245,0.2661486,93956.0,93955.0,0.2661433]
[1746540482445,0.15748153,93980.0,93959.0,0.212912]
[1746540482652,0.001,93966.0,93959.0,0.212912]
[1746540482951,0.001,93966.0,93959.0,1.72412804]
[1746540483242,0.001,93966.0,93959.0,1.90212804]
[1746540484250,0.001,93966.0,93959.0,1.91021019]
[1746540485856,0.001,93966.0,93959.0,1.89899415]
[1746540486151,0.1565,93965.0,93959.0,1.72099415]
[1746540486341,0.3221,93965.0,93959.0,1.72099415]
[1746540486742,0.001,93966.0,93959.0,1.72099415]
[1746540487148,0.001,93966.0,93959.0,0.22099415]
[1746540487544,0.1565,93965.0,93959.0,0.22099415]
[1746540488352,0.001,93966.0,93959.0,0.22099415]
[1746540488548,0.001,93966.0,93965.0,0.2128984]
[1746540488754,0.001,93966.0,93965.0,0.5736984]
[1746540488950,0.001,93966.0,93965.0,2.0736984]
[1746540489150,0.001,93996.0,93994.0,0.2128327]
[1746540489350,0.169,93995.0,93994.0,0.2128327]
[1746540489651,0.0015,93995.0,93994.0,0.2128327]
[1746540490948,0.0015,93995.0,93994.0,1.8192207]
[1746540491143,0.1648,94022.0,94021.0,0.2127716]
[1746540491348,0.2142526,94030.0,94022.0,0.2127693]
[1746540491546,0.0015,94030.0,94022.0,0.2127693]
[1746540492455,0.3335,94025.0,94022.0,0.2127693]
[1746540492961,0.3335,94025.0,94022.0,0.22060484]
[1746540494146,0.0015,94030.0,94022.0,0.22060484]
[1746540494353,0.18809701,94023.0,94022.0,0.68776084]
[1746540494754,0.18809701,94023.0,94022.0,0.71776084]
[1746540494958,0.18809701,94023.0,94022.0,0.68776084]
[1746540495155,0.18809701,94023.0,94022.0,0.86576084]
[1746540495551,0.18809701,94023.0,94022.0,0.75940484]
[1746540495756,0.0015,94030.0,94025.0,0.2127625]
[1746540495757,0.1553,94028.0,94025.0,0.2127625]
[1746540495962,0.1687,94027.0,94025.0,0.2127625]
[1746540496352,0.1563,94026.0,94025.0,0.2127625]
[1746540496660,0.3690603,94026.0,94025.0,0.2127625]
[1746540497056,0.00090387,94026.0,94025.0,1.8191185]
[1746540497253,0.00090387,94026.0,94025.0,1.8291185]
[1746540497656,0.00090387,94026.0,94025.0,1.9967185]
[1746540497863,0.00090387,94026.0,94025.0,1.9867185]
[1746540498062,0.00090387,94026.0,94025.0,2.1647185]
[1746540498264,0.21366417,94026.0,94025.0,2.1647185]
[1746540498464,0.21366417,94026.0,94025.0,2.0583625]
[1746540499265,0.00090387,94026.0,94025.0,1.8803625]
[1746540499666,0.21366417,94026.0,94025.0,1.8803625]
[1746540500060,0.00090387,94026.0,94025.0,1.8803625]
[1746540500256,0.21366417,94026.0,94025.0,2.0412625]
[1746540500561,0.00090387,94026.0,94025.0,2.0412625]
[1746540502067,0.21366417,94026.0,94025.0,2.0412625]
[1746540502462,0.21366417,94026.0,94025.0,1.8736625]
[1746540502663,0.36170387,94026.0,94011.0,0.0531983]
[1746540502864,0.3191854,94016.0,94015.0,0.6267641]
[1746540503054,0.2659881,94016.0,94015.0,0.6267641]
[1746540503260,0.2659881,94016.0,94015.0,2.1267641]
[1746540503663,0.2127987,94009.0,94008.0,0.0531999]
[1746540504168,0.2127987,94009.0,94008.0,0.2154999]
[1746540504558,0.2127987,94009.0,94008.0,0.4814862]
[1746540505067,0.3691987,94009.0,94008.0,0.4814862]
[1746540505669,0.21281,94005.0,94004.0,0.2128086]
[1746540505864,0.21281,94004.0,93995.0,0.17357629]
[1746540506071,0.54811,94004.0,93994.0,0.3608]
[1746540506364,0.54811,94004.0,93999.0,0.0532052]
[1746540506567,0.54811,94004.0,94002.0,0.2128135]
[1746540506760,0.54811,94004.0,94003.0,0.21440787]
[1746540507461,0.3353,94004.0,94003.0,0.21440787]
[1746540507961,0.3353,94004.0,94003.0,0.37610787]
[1746540508162,0.3353,94004.0,94003.0,1.87610787]
[1746540508361,0.54811,94004.0,94003.0,1.87610787]
[1746540508562,0.54811,94004.0,94003.0,1.71440787]
[1746540511566,0.3353,94004.0,94003.0,1.71440787]
[1746540511763,0.54811,94004.0,94003.0,2.07520787]
[1746540512164,0.3353,94004.0,94003.0,2.07520787]
[1746540512360,0.15898153,94030.0,94025.0,0.2127625]
[1746540512361,0.0015,94030.0,94025.0,0.2127625]
[1746540512562,0.21366417,94026.0,94025.0,0.2127625]
[1746540512870,0.21366417,94026.0,94025.0,0.3798625]
[1746540513171,0.21366417,94026.0,94025.0,1.8798625]
[1746540513958,0.21366417,94026.0,94025.0,1.6671]
[1746540514158,0.21366417,94026.0,94025.0,1.5]
[1746540514472,0.38136417,94026.0,94025.0,1.7127625]
[1746540514673,0.53826417,94026.0,94025.0,1.8798625]
[1746540515272,0.32550387,94026.0,94025.0,1.8798625]
[1746540515572,0.53826417,94026.0,94025.0,1.8798625]
[1746540516874,0.00090387,94026.0,94025.0,1.8798625]
[1746540517068,0.00090387,94026.0,94025.0,2.0510625]
[1746540520375,7e-08,94026.0,94025.0,2.1574185]
[1746540520575,7e-08,94026.0,94025.0,2.4074185]
[1746540520980,7e-08,94030.0,94029.0,0.2127535]
[1746540521277,7e-08,94030.0,94029.0,0.3907535]
[1746540521475,7e-08,94030.0,94029.0,0.4971015]
[1746540521869,7e-08,94030.0,94029.0,1.9971015]
[1746540522069,7e-08,94030.0,94029.0,1.8191015]
[1746540522671,7e-08,94030.0,94029.0,2.0691015]
[1746540523173,7e-08,94030.0,94029.0,2.2471015]
[1746540523370,7e-08,94030.0,94029.0,1.9971015]
[1746540524471,7e-08,94030.0,94029.0,2.4874015]
[1746540524979,0.5395982,94054.0,94053.0,0.2126992]
[1746540525179,0.5395982,94054.0,94053.0,0.5734992]
[1746540525478,0.3269,94054.0,94053.0,0.5734992]
[1746540525678,0.3269,94054.0,94053.0,2.0734992]
[1746540526579,0.001,94056.0,94055.0,0.2126947]
[1746540526772,1e-07,94056.0,94055.0,0.2126947]
[1746540526975,1e-07,94056.0,94055.0,0.3706947]
[1746540528166,1e-07,94056.0,94055.0,0.48491817]
[1746540528365,1e-07,94056.0,94055.0,1.98491817]
[1746540529375,1e-07,94056.0,94055.0,1.87859817]
[1746540529578,1e-07,94056.0,94055.0,1.98491817]
[1746540529974,1e-07,94056.0,94055.0,1.87859817]
[1746540535383,0.2126925,94056.0,94055.0,0.00790347]
[1746540535590,0.212715,94046.0,94045.0,0.37402584]
[1746540536686,0.523315,94046.0,94045.0,0.37402584]
[1746540537688,0.523315,94046.0,94045.0,0.2127173]
[1746540539490,0.3106,94046.0,94045.0,0.2127173]
[1746540541083,0.0531555,94088.0,94064.0,0.2126743]
[1746540541281,0.0531555,94088.0,94064.0,1.7126743]
[1746540541282,0.2126601,94071.0,94064.0,1.7126743]
[1746540541486,0.2126603,94071.0,94064.0,1.7126743]
[1746540541884,0.2160601,94079.0,94064.0,1.7126743]
[1746540542186,0.2126523,94074.0,94064.0,1.7126743]
[1746540542390,0.2126522,94074.0,94064.0,1.7126743]
[1746540542592,0.2126466,94077.0,94064.0,1.7126743]
[1746540542885,0.2126504,94075.0,94064.0,1.7126743]
[1746540543090,0.1629,94079.0,94064.0,1.7126743]
[1746540543281,0.0531612,94077.0,94064.0,1.7126743]
[1746540543482,0.2126525,94074.0,94064.0,1.72828152]
[1746540544085,0.2126525,94074.0,94064.0,1.7126743]
[1746540544295,0.1677,94073.0,94064.0,1.72828978]
[1746540545386,0.1677,94073.0,94064.0,1.7126743]
[1746540546294,0.161,94072.0,94064.0,1.7126743]
[1746540550693,0.161,94072.0,94064.0,1.8705743]
[1746540551688,0.1677,94073.0,94064.0,1.8705743]
[1746540552089,1e-07,94065.0,94064.0,1.8705743]
[1746540553197,0.16586,94080.0,94079.0,0.2126404]
[1746540553393,0.1173094,94080.0,94079.0,0.9342404]
[1746540554298,0.0531386,94117.0,94099.0,0.2125952]
[1746540554598,0.2125805,94106.0,94099.0,0.5733952]
[1746540554801,0.2125777,94107.0,94099.0,2.0733952]
[1746540555099,0.1565,94105.0,94099.0,2.0733952]
[1746540556794,0.1635,94104.0,94099.0,2.0733952]
[1746540556999,0.1635,94104.0,94099.0,2.08128938]
[1746540557801,0.1635,94104.0,94099.0,2.0926135]
[1746540558697,0.1628,94103.0,94099.0,2.0926135]
[1746540563607,0.1635,94104.0,94099.0,2.0926135]
[1746540564201,0.0531239,94144.0,94115.0,0.2125591]
[1746540564505,0.5310501,94177.0,94131.0,0.2125229]
[1746540564506,0.1619,94132.0,94131.0,0.2125229]
[1746540564807,0.3215,94132.0,94131.0,0.2125229]
[1746540565305,0.1596,94132.0,94131.0,0.5733229]
[1746540565511,0.3608,94160.0,94131.0,0.467036]
[1746540565708,0.1596,94152.0,94145.0,0.5732913]
[1746540566007,0.1596,94152.0,94145.0,2.0732913]
[1746540566600,0.0531198,94151.0,94145.0,2.0732913]
[1746540566806,0.3720768,94152.0,94145.0,2.0732913]
[1746540567007,0.1596,94152.0,94145.0,2.0732913]
[1746540567601,0.1646,94151.0,94145.0,2.08444849]
[1746540568705,0.3770786,94151.0,94145.0,2.08444849]
[1746540569010,0.2134891,94146.0,94145.0,2.08444849]
[1746540569396,0.2134891,94146.0,94145.0,1.87195719]
[1746540570211,0.2134891,94146.0,94145.0,2.08444849]
[1746540570401,0.1649,94146.0,94145.0,2.08444849]
[1746540570603,0.3773891,94146.0,94145.0,2.08444849]
[1746540571603,0.3773891,94146.0,94145.0,1.5]
[1746540571807,0.3773891,94146.0,94138.0,0.2656269]
[1746540571808,0.2125162,94139.0,94138.0,0.2656269]
[1746540572112,0.0531263,94139.0,94131.0,0.3608]
[1746540572313,0.2125207,94132.0,94131.0,0.6264485]
[1746540572506,0.2125207,94132.0,94131.0,0.5733184]
[1746540572704,0.1634,94133.0,94132.0,0.2125207]
[1746540573207,0.1634,94133.0,94132.0,0.3763207]
[1746540574609,0.1634,94133.0,94132.0,0.5307207]
[1746540574807,0.1639,94138.0,94137.0,0.2125094]
[1746540576404,0.1619,94144.0,94132.0,0.4853]
[1746540576706,0.001,94146.0,94145.0,0.2124913]
[1746540578011,0.001,94146.0,94145.0,0.3819913]
[1746540578715,0.001,94146.0,94145.0,0.4882113]
[1746540578915,0.3347,94158.0,94157.0,0.2124642]
[1746540579118,0.1668,94158.0,94157.0,0.5732642]
[1746540579313,0.1668,94158.0,94157.0,2.0732642]
[1746540580211,0.1608,94169.0,94168.0,0.2124394]
[1746540580814,0.0015,94170.0,94169.0,0.2124372]
[1746540581518,0.2139349,94170.0,94169.0,1.7124372]
[1746540581722,0.0015,94170.0,94169.0,1.7124372]
[1746540582312,0.3139349,94170.0,94169.0,1.5]
[1746540582616,0.718492,94170.0,94153.0,0.2655855]
[1746540582924,0.2124736,94154.0,94153.0,0.2655855]
[1746540583112,0.2124684,94156.0,94155.0,0.2124688]
[1746540583615,0.3269,94157.0,94156.0,0.2124665]
[1746540583821,0.3269,94157.0,94156.0,0.22056321]
[1746540584623,0.5393642,94157.0,94156.0,0.00809671]
[1746540584923,0.1583,94157.0,94156.0,0.2124665]
[1746540585218,0.1583,94157.0,94156.0,0.3755665]
[1746540585618,0.1583,94157.0,94156.0,0.2124665]
[1746540585923,0.1583,94157.0,94156.0,0.22054727]
[1746540586120,0.1583,94157.0,94155.0,1.8608]
[1746540586121,0.2124665,94156.0,94155.0,1.5]
[1746540586426,0.2124845,94148.0,94147.0,0.5732855]
[1746540586717,0.2124845,94148.0,94147.0,2.0732855]
[1746540586909,0.2124814,94150.0,94149.0,0.21248]
[1746540587113,0.1619,94150.0,94149.0,0.21248]
[1746540587813,0.1619,94150.0,94149.0,0.37558]
[1746540588821,0.1619,94150.0,94149.0,0.21248]
[1746540589018,0.2124845,94148.0,94147.0,1.5]
[1746540589324,0.4608,94148.0,94126.0,0.3608]
[1746540589525,0.4139285,94135.0,94134.0,0.2125162]
[1746540589724,0.3608,94140.0,94136.0,0.0531274]
[1746540589915,0.2125038,94140.0,94139.0,0.2125049]
[1746540590117,0.2656272,94144.0,94143.0,0.2124936]
[1746540590316,0.2656276,94142.0,94141.0,0.2124988]
[1746540590516,0.2125026,94142.0,94141.0,0.2124988]
[1746540590717,0.2125026,94140.0,94139.0,0.2125035]
[1746540591227,0.31872661,94140.0,94139.0,0.2125035]
[1746540591828,0.10622401,94140.0,94129.0,0.0531318]
[1746540592123,0.2656432,94135.0,94134.0,0.2125162]
[1746540592326,0.2125207,94133.0,94132.0,0.2125195]
[1746540592821,0.3187527,94133.0,94132.0,0.2125195]
[1746540593017,0.2125207,94133.0,94132.0,0.2125195]
[1746540593216,0.2125151,94135.0,94134.0,0.2656401]
[1746540593418,0.3187471,94135.0,94134.0,0.2656401]
[1746540594122,0.106232,94135.0,94134.0,0.2656401]
[1746540594729,0.2124948,94144.0,94143.0,0.2656094]
[1746540594919,0.2124948,94144.0,94143.0,0.2124868]
[1746540595226,0.31871481,94144.0,94143.0,0.2124868]
[1746540595617,0.2656276,94142.0,94141.0,0.2124989]
[1746540596327,0.2124946,94144.0,94143.0,0.2124936]
[1746540596522,0.2124946,94144.0,94130.0,0.0080953]
[1746540596523,0.2125049,94139.0,94138.0,0.3832026]
[1746540596723,0.2125139,94135.0,94130.0,0.0080953]
[1746540596924,0.2125139,94135.0,94132.0,0.0531301]
[1746540597125,0.2125139,94135.0,94134.0,0.5733162]
[1746540597330,0.2125139,94135.0,94134.0,0.3608]
[1746540597926,0.2125139,94135.0,94134.0,0.5733162]
[1746540598119,0.2125139,94135.0,94134.0,0.3608]
[1746540599225,0.2125297,94128.0,94127.0,1.5]
[1746540600325,0.3819297,94128.0,94127.0,1.5]
[1746540600523,0.3819297,94128.0,94127.0,1.712532]
[1746540600725,0.165,94129.0,94128.0,0.2125297]
[1746540600926,0.165,94129.0,94128.0,0.3826297]
[1746540601128,0.165,94129.0,94128.0,0.5480297]
[1746540601928,0.2125297,94128.0,94127.0,1.5]
[1746540602123,0.3819297,94128.0,94127.0,1.5]
[1746540602324,0.0531368,94121.0,94118.0,0.3779492]
[1746540602628,0.2125523,94118.0,94115.0,0.00106252]
[1746540602829,0.2125523,94118.0,94117.0,1.50159375]
[1746540603046,0.2125523,94118.0,94117.0,1.71414825]
[1746540603231,0.3817374,94120.0,94119.0,0.21255]
[1746540603232,0.5411482,94120.0,94119.0,0.21255]
[1746540603730,0.3286,94120.0,94119.0,0.21255]
[1746540603934,0.3286,94120.0,94119.0,0.37125]
[1746540604132,0.5733297,94128.0,94127.0,0.212532]
[1746540605035,0.7393297,94128.0,94127.0,0.212532]
[1746540605732,0.212532,94127.0,94126.0,0.3720335]
[1746540605930,0.372732,94127.0,94126.0,0.1595]
[1746540606130,0.538732,94127.0,94126.0,0.3720342]
[1746540607339,0.538732,94127.0,94126.0,0.7328342]
[1746540607340,0.3262,94127.0,94126.0,0.7328342]
[1746540608432,0.538732,94127.0,94126.0,0.7328342]
[1746540608633,0.3262,94127.0,94126.0,0.3720342]
[1746540608832,0.0531244,94143.0,94141.0,0.2656154]
[1746540609030,0.2124958,94143.0,94142.0,0.1663]
[1746540609230,0.3187762,94135.0,94134.0,0.2125147]
[1746540609537,0.2656473,94135.0,94134.0,1.5]
[1746540610543,0.2125162,94134.0,94133.0,0.1569]
[1746540610735,0.2125387,94124.0,94113.0,0.36861817]
[1746540610939,0.21255,94119.0,94118.0,1.5]
[1746540611130,0.21255,94119.0,94118.0,1.8694523]
[1746540611332,0.21255,94119.0,94118.0,1.6569]
[1746540611935,0.38265,94119.0,94118.0,1.8694523]
[1746540612125,0.1701,94119.0,94118.0,0.3694523]
[1746540612331,0.0531321,94129.0,94128.0,0.212522]
[1746540612527,0.3702178,94134.0,94133.0,0.2125184]
[1746540612733,0.3608,94140.0,94139.0,0.2125049]
[1746540612941,0.5733026,94140.0,94139.0,0.2125049]
[1746540613545,0.2125049,94139.0,94138.0,0.1679]
[1746540613730,0.3794049,94139.0,94138.0,0.1679]
[1746540613934,0.3794049,94139.0,94138.0,0.3804071]
[1746540614639,0.3608,94140.0,94139.0,0.2125049]
[1746540614845,0.2124924,94145.0,94144.0,0.2124936]
[1746540615343,0.2124924,94145.0,94142.0,0.053124]
[1746540615344,0.2124823,94149.0,94148.0,0.2124823]
[1746540615643,0.2124906,94146.0,94145.0,0.2656068]
[1746540616043,0.2124906,94146.0,94145.0,0.2124845]
[1746540616338,0.2124906,94146.0,94145.0,0.5383845]
[1746540616844,0.2124858,94148.0,94147.0,0.2124868]
[1746540617041,0.2124858,94148.0,94147.0,0.21226864]
[1746540619944,0.2124891,94146.0,94145.0,0.5383886]
[1746540620140,0.2124891,94146.0,94145.0,0.1713]
[1746540620451,0.2124891,94146.0,94145.0,0.3837913]
[1746540620838,0.0531205,94150.0,94145.0,0.3837913]
[1746540620839,0.053113,94163.0,94155.0,0.0531166]
[1746540621042,0.7356637,94159.0,94158.0,0.212462]
[1746540621244,0.2124642,94157.0,94156.0,0.596179]
[1746540622342,0.1542,94168.0,94157.0,0.0531159]
[1746540622537,0.2124526,94164.0,94163.0,0.2124441]
[1746540623050,0.2124507,94163.0,94162.0,0.3195]
[1746540623553,0.2124507,94163.0,94162.0,1.8195]
[1746540623944,0.2124507,94163.0,94162.0,2.031953]
[1746540624450,0.2124507,94163.0,94162.0,1.8195]
[1746540624954,0.2124507,94163.0,94162.0,2.031953]
[1746540625140,0.2124507,94163.0,94162.0,1.8195]
[1746540626252,0.2124507,94163.0,94162.0,1.5]
[1746540626554,0.2124733,94154.0,94153.0,0.2124702]
[1746540626943,0.2124733,94154.0,94153.0,1.7124702]
[1746540627451,0.2124669,94158.0,94157.0,0.2124606]
[1746540627748,0.2124669,94158.0,94157.0,0.3766606]
[1746540628055,0.3808552,94162.0,94161.0,0.2124552]
[1746540628449,0.5747349,94170.0,94169.0,0.2124372]
[1746540628752,0.2124462,94165.0,94164.0,0.2655581]
[1746540629338,0.2124462,94165.0,94164.0,0.2124462]
[1746540632256,0.2124507,94163.0,94162.0,0.3766515]
[1746540633255,0.2124474,94165.0,94164.0,0.2124484]
[1746540635150,0.2124507,94163.0,94162.0,0.3766518]
[1746540636254,0.0531146,94160.0,94153.0,0.3608]
[1746540636458,0.2124936,94144.0,94143.0,0.1692]
[1746540636760,0.2124863,94148.0,94147.0,0.2124845]
[1746540636949,0.3768863,94148.0,94147.0,0.2124845]
[1746540637254,0.1644,94148.0,94147.0,0.2124845]
[1746540637454,0.3768845,94148.0,94147.0,0.2124845]
[1746540637851,0.1644,94148.0,94147.0,1.7124845]
[1746540638156,0.0531151,94159.0,94157.0,0.212462]
[1746540638357,0.3768642,94158.0,94157.0,0.212462]
[1746540639058,0.2124688,94156.0,94155.0,0.2124671]
[1746540639455,0.5403688,94156.0,94155.0,0.2124671]
[1746540639664,0.2124823,94149.0,94148.0,0.2124779]
[1746540640449,0.2124823,94149.0,94148.0,0.3763779]
[1746540640655,0.5410823,94149.0,94148.0,0.1639]
[1746540640855,0.5410823,94149.0,94148.0,0.3763845]
[1746540641063,0.5410823,94149.0,94148.0,0.1639]
[1746540641465,0.5410823,94149.0,94038.0,0.00184926]
[1746540641466,0.2124958,94143.0,94142.0,0.3608]
[1746540641763,0.2124958,94143.0,94142.0,0.58917784]
[1746540641957,0.2124958,94143.0,94142.0,2.08917784]
[1746540642767,0.3832958,94143.0,94142.0,2.08917784]
[1746540643167,0.3832958,94143.0,94142.0,1.87667974]